Workbook

Sheet Worksheet
C1: =CONCATENATE("Solve for k and a, where ",IF(B7=1,"0 ≤ a < 360°",IF(B7=2,"0 ≤ a < 2π","'a' is in either degrees or radians as indicated"))) -> Solve for k and a, where 'a' is in either degrees or radians as indicated
A2: Variables | C2: 1 | D2: deg | E2: solve for 0 ≤ a < | I2: 360° | N2: 2 | O2: rad | P2: solve for 0 ≤ a < | T2: 2π | Y2: 3 | Z2: deg | AA2: solve for 0 ≤ a < | AE2: 360°
A3: SHOW ANSWERS | B3: FALSE | D3: k | E3: cos | F3: a | G3: = | H3: –1 | I3: k | J3: = | K3: 9.055 | L3: (√82) | O3: k | P3: cos | Q3: a | R3: = | S3: 9 | T3: k | U3: = | V3: 9.055 | W3: (√82) | Z3: k | AA3: cos | AB3: a | AC3: = | AD3: 6 | AE3: k | AF3: = | AG3: 6.708 | AH3: (√45)
A4: Coefficients | D4: k | E4: sin | F4: a | G4: = | H4: 9 | I4: a | J4: = | K4: 96.34° | O4: k | P4: sin | Q4: a | R4: = | S4: –1 | T4: a | U4: = | V4: 6.173 | Z4: k | AA4: sin | AB4: a | AC4: = | AD4: 3 | AE4: a | AF4: = | AG4: 26.565°
A5: Maximum (absolute) value of left-hand side | B5: 10 | K5: 83.65980825 | V5: 0.1106572212 | AG5: 26.56505118
A6: Units | C6: 4 | D6: rad | E6: solve for 0 ≤ a < | I6: 2π | N6: 5 | O6: rad | P6: solve for 0 ≤ a < | T6: 2π | Y6: 6 | Z6: deg | AA6: solve for 0 ≤ a < | AE6: 360°
A7: Degrees | B7: 3 | D7: k | E7: cos | F7: a | G7: = | H7: 3 | I7: k | J7: = | K7: 9.487 | L7: (√90) | O7: k | P7: cos | Q7: a | R7: = | S7: 3 | T7: k | U7: = | V7: 7.616 | W7: (√58) | Z7: k | AA7: cos | AB7: a | AC7: = | AD7: –6 | AE7: k | AF7: = | AG7: 6.325 | AH7: (√40)
A8: Radians | D8: k | E8: sin | F8: a | G8: = | H8: 9 | I8: a | J8: = | K8: 1.249 | O8: k | P8: sin | Q8: a | R8: = | S8: 7 | T8: a | U8: = | V8: 1.166 | Z8: k | AA8: sin | AB8: a | AC8: = | AD8: 2 | AE8: a | AF8: = | AG8: 161.565°
A9: A mixture of degrees and radians | K9: 1.249045772 | V9: 1.165904541 | AG9: 18.43494882
A10: Answers | C10: 7 | D10: rad | E10: solve for 0 ≤ a < | I10: 2π | N10: 8 | O10: deg | P10: solve for 0 ≤ a < | T10: 360° | Y10: 9 | Z10: deg | AA10: solve for 0 ≤ a < | AE10: 360°
A11: Number of decimal places to round answers to | B11: 3 | D11: k | E11: cos | F11: a | G11: = | H11: 8 | I11: k | J11: = | K11: 11.314 | L11: (√128) | O11: k | P11: cos | Q11: a | R11: = | S11: –3 | T11: k | U11: = | V11: 6.708 | W11: (√45) | Z11: k | AA11: cos | AB11: a | AC11: = | AD11: 10 | AE11: k | AF11: = | AG11: 14.142 | AH11: (√200)
D12: k | E12: sin | F12: a | G12: = | H12: 8 | I12: a | J12: = | K12: 0.785 | O12: k | P12: sin | Q12: a | R12: = | S12: –6 | T12: a | U12: = | V12: 243.435° | Z12: k | AA12: sin | AB12: a | AC12: = | AD12: –10 | AE12: a | AF12: = | AG12: 315°

Sheet SYSTEM FORMULAE
A1: 1 | B1: =IF(Worksheet!$B$7=1,"deg",IF(Worksheet!$B$8=2,"rad",CHOOSE(RANDBETWEEN(1,2),"rad","deg"))) -> deg | C1: solve for 0 ≤ a < | G1: =IF(B1="deg","360°","2π") -> 360° | L1: 2 | M1: =IF(Worksheet!$B$7=1,"deg",IF(Worksheet!$B$8=2,"rad",CHOOSE(RANDBETWEEN(1,2),"rad","deg"))) -> deg | N1: solve for 0 ≤ a < | R1: =IF(M1="deg","360°","2π") -> 360° | W1: 3 | X1: =IF(Worksheet!$B$7=1,"deg",IF(Worksheet!$B$8=2,"rad",CHOOSE(RANDBETWEEN(1,2),"rad","deg"))) -> rad | Y1: solve for 0 ≤ a < | AC1: =IF(X1="deg","360°","2π") -> 2π
B2: k | C2: cos | D2: a | E2: = | F2: =RANDBETWEEN(1,10)*(-1)^RANDBETWEEN(1,2) -> -8 | G2: k | H2: = | I2: =ROUND(SQRT(F3^2+F2^2),Worksheet!$B$11) -> 8.062 | J2: =IF(INT(I2)=I2,"",CONCATENATE("(√",F3^2+F2^2,")")) -> (√65) | M2: k | N2: cos | O2: a | P2: = | Q2: =RANDBETWEEN(1,10)*(-1)^RANDBETWEEN(1,2) -> -1 | R2: k | S2: = | T2: =ROUND(SQRT(Q3^2+Q2^2),Worksheet!$B$11) -> 4.123 | U2: =IF(INT(T2)=T2,"",CONCATENATE("(√",Q3^2+Q2^2,")")) -> (√17) | X2: k | Y2: cos | Z2: a | AA2: = | AB2: =RANDBETWEEN(1,10)*(-1)^RANDBETWEEN(1,2) -> -8 | AC2: k | AD2: = | AE2: =ROUND(SQRT(AB3^2+AB2^2),Worksheet!$B$11) -> 10.63 | AF2: =IF(INT(AE2)=AE2,"",CONCATENATE("(√",AB3^2+AB2^2,")")) -> (√113)
B3: k | C3: sin | D3: a | E3: = | F3: =RANDBETWEEN(1,Worksheet!$B$5)*(-1)^RANDBETWEEN(1,2) -> 1 | G3: a | H3: = | I3: =CONCATENATE(IF(B1="deg",ROUND(IF(AND(F3>0,F2>0),I4,IF(AND(F3>0,F2<0),180-I4,IF(AND(F3<0,F2<0),180+I4,360-I4))),Worksheet!$B$11),ROUND(IF(AND(F3>0,F2>0),I4,IF(AND(F3>0,F2<0),PI()-I4,IF(AND(F3<0,F2<0),PI()+I4,2*PI()-I4))),Worksheet!$B$11)),IF(B1="deg","°","")) -> 172.875° | M3: k | N3: sin | O3: a | P3: = | Q3: =RANDBETWEEN(1,Worksheet!$B$5)*(-1)^RANDBETWEEN(1,2) -> -4 | R3: a | S3: = | T3: =CONCATENATE(IF(M1="deg",ROUND(IF(AND(Q3>0,Q2>0),T4,IF(AND(Q3>0,Q2<0),180-T4,IF(AND(Q3<0,Q2<0),180+T4,360-T4))),Worksheet!$B$11),ROUND(IF(AND(Q3>0,Q2>0),T4,IF(AND(Q3>0,Q2<0),PI()-T4,IF(AND(Q3<0,Q2<0),PI()+T4,2*PI()-T4))),Worksheet!$B$11)),IF(M1="deg","°","")) -> 255.964° | X3: k | Y3: sin | Z3: a | AA3: = | AB3: =RANDBETWEEN(1,Worksheet!$B$5)*(-1)^RANDBETWEEN(1,2) -> -7 | AC3: a | AD3: = | AE3: =CONCATENATE(IF(X1="deg",ROUND(IF(AND(AB3>0,AB2>0),AE4,IF(AND(AB3>0,AB2<0),180-AE4,IF(AND(AB3<0,AB2<0),180+AE4,360-AE4))),Worksheet!$B$11),ROUND(IF(AND(AB3>0,AB2>0),AE4,IF(AND(AB3>0,AB2<0),PI()-AE4,IF(AND(AB3<0,AB2<0),PI()+AE4,2*PI()-AE4))),Worksheet!$B$11)),IF(X1="deg","°","")) -> 3.86
I4: =ABS(IF(B1="rad",ATAN(ABS(F3/F2)),DEGREES(ATAN(ABS(F3/F2))))) -> 7.125016349 | T4: =ABS(IF(M1="rad",ATAN(ABS(Q3/Q2)),DEGREES(ATAN(ABS(Q3/Q2))))) -> 75.96375653 | AE4: =ABS(IF(X1="rad",ATAN(ABS(AB3/AB2)),DEGREES(ATAN(ABS(AB3/AB2))))) -> 0.7188299996
A5: 4 | B5: =IF(Worksheet!$B$7=1,"deg",IF(Worksheet!$B$8=2,"rad",CHOOSE(RANDBETWEEN(1,2),"rad","deg"))) -> rad | C5: solve for 0 ≤ a < | G5: =IF(B5="deg","360°","2π") -> 2π | L5: 5 | M5: =IF(Worksheet!$B$7=1,"deg",IF(Worksheet!$B$8=2,"rad",CHOOSE(RANDBETWEEN(1,2),"rad","deg"))) -> rad | N5: solve for 0 ≤ a < | R5: =IF(M5="deg","360°","2π") -> 2π | W5: 6 | X5: =IF(Worksheet!$B$7=1,"deg",IF(Worksheet!$B$8=2,"rad",CHOOSE(RANDBETWEEN(1,2),"rad","deg"))) -> deg | Y5: solve for 0 ≤ a < | AC5: =IF(X5="deg","360°","2π") -> 360°
B6: k | C6: cos | D6: a | E6: = | F6: =RANDBETWEEN(1,10)*(-1)^RANDBETWEEN(1,2) -> 10 | G6: k | H6: = | I6: =ROUND(SQRT(F7^2+F6^2),Worksheet!$B$11) -> 12.806 | J6: =IF(INT(I6)=I6,"",CONCATENATE("(√",F7^2+F6^2,")")) -> (√164) | M6: k | N6: cos | O6: a | P6: = | Q6: =RANDBETWEEN(1,10)*(-1)^RANDBETWEEN(1,2) -> 2 | R6: k | S6: = | T6: =ROUND(SQRT(Q7^2+Q6^2),Worksheet!$B$11) -> 9.22 | U6: =IF(INT(T6)=T6,"",CONCATENATE("(√",Q7^2+Q6^2,")")) -> (√85) | X6: k | Y6: cos | Z6: a | AA6: = | AB6: =RANDBETWEEN(1,10)*(-1)^RANDBETWEEN(1,2) -> -1 | AC6: k | AD6: = | AE6: =ROUND(SQRT(AB7^2+AB6^2),Worksheet!$B$11) -> 9.055 | AF6: =IF(INT(AE6)=AE6,"",CONCATENATE("(√",AB7^2+AB6^2,")")) -> (√82)
B7: k | C7: sin | D7: a | E7: = | F7: =RANDBETWEEN(1,Worksheet!$B$5)*(-1)^RANDBETWEEN(1,2) -> 8 | G7: a | H7: = | I7: =CONCATENATE(IF(B5="deg",ROUND(IF(AND(F7>0,F6>0),I8,IF(AND(F7>0,F6<0),180-I8,IF(AND(F7<0,F6<0),180+I8,360-I8))),Worksheet!$B$11),ROUND(IF(AND(F7>0,F6>0),I8,IF(AND(F7>0,F6<0),PI()-I8,IF(AND(F7<0,F6<0),PI()+I8,2*PI()-I8))),Worksheet!$B$11)),IF(B5="deg","°","")) -> 0.675 | M7: k | N7: sin | O7: a | P7: = | Q7: =RANDBETWEEN(1,Worksheet!$B$5)*(-1)^RANDBETWEEN(1,2) -> 9 | R7: a | S7: = | T7: =CONCATENATE(IF(M5="deg",ROUND(IF(AND(Q7>0,Q6>0),T8,IF(AND(Q7>0,Q6<0),180-T8,IF(AND(Q7<0,Q6<0),180+T8,360-T8))),Worksheet!$B$11),ROUND(IF(AND(Q7>0,Q6>0),T8,IF(AND(Q7>0,Q6<0),PI()-T8,IF(AND(Q7<0,Q6<0),PI()+T8,2*PI()-T8))),Worksheet!$B$11)),IF(M5="deg","°","")) -> 1.352 | X7: k | Y7: sin | Z7: a | AA7: = | AB7: =RANDBETWEEN(1,Worksheet!$B$5)*(-1)^RANDBETWEEN(1,2) -> 9 | AC7: a | AD7: = | AE7: =CONCATENATE(IF(X5="deg",ROUND(IF(AND(AB7>0,AB6>0),AE8,IF(AND(AB7>0,AB6<0),180-AE8,IF(AND(AB7<0,AB6<0),180+AE8,360-AE8))),Worksheet!$B$11),ROUND(IF(AND(AB7>0,AB6>0),AE8,IF(AND(AB7>0,AB6<0),PI()-AE8,IF(AND(AB7<0,AB6<0),PI()+AE8,2*PI()-AE8))),Worksheet!$B$11)),IF(X5="deg","°","")) -> 96.34°
I8: =ABS(IF(B5="rad",ATAN(ABS(F7/F6)),DEGREES(ATAN(ABS(F7/F6))))) -> 0.6747409422 | T8: =ABS(IF(M5="rad",ATAN(ABS(Q7/Q6)),DEGREES(ATAN(ABS(Q7/Q6))))) -> 1.352127381 | AE8: =ABS(IF(X5="rad",ATAN(ABS(AB7/AB6)),DEGREES(ATAN(ABS(AB7/AB6))))) -> 83.65980825
A9: 7 | B9: =IF(Worksheet!$B$7=1,"deg",IF(Worksheet!$B$8=2,"rad",CHOOSE(RANDBETWEEN(1,2),"rad","deg"))) -> rad | C9: solve for 0 ≤ a < | G9: =IF(B9="deg","360°","2π") -> 2π | L9: 8 | M9: =IF(Worksheet!$B$7=1,"deg",IF(Worksheet!$B$8=2,"rad",CHOOSE(RANDBETWEEN(1,2),"rad","deg"))) -> rad | N9: solve for 0 ≤ a < | R9: =IF(M9="deg","360°","2π") -> 2π | W9: 9 | X9: =IF(Worksheet!$B$7=1,"deg",IF(Worksheet!$B$8=2,"rad",CHOOSE(RANDBETWEEN(1,2),"rad","deg"))) -> rad | Y9: solve for 0 ≤ a < | AC9: =IF(X9="deg","360°","2π") -> 2π
B10: k | C10: cos | D10: a | E10: = | F10: =RANDBETWEEN(1,10)*(-1)^RANDBETWEEN(1,2) -> -8 | G10: k | H10: = | I10: =ROUND(SQRT(F11^2+F10^2),Worksheet!$B$11) -> 8.944 | J10: =IF(INT(I10)=I10,"",CONCATENATE("(√",F11^2+F10^2,")")) -> (√80) | M10: k | N10: cos | O10: a | P10: = | Q10: =RANDBETWEEN(1,10)*(-1)^RANDBETWEEN(1,2) -> 7 | R10: k | S10: = | T10: =ROUND(SQRT(Q11^2+Q10^2),Worksheet!$B$11) -> 7.616 | U10: =IF(INT(T10)=T10,"",CONCATENATE("(√",Q11^2+Q10^2,")")) -> (√58) | X10: k | Y10: cos | Z10: a | AA10: = | AB10: =RANDBETWEEN(1,10)*(-1)^RANDBETWEEN(1,2) -> 6 | AC10: k | AD10: = | AE10: =ROUND(SQRT(AB11^2+AB10^2),Worksheet!$B$11) -> 8.485 | AF10: =IF(INT(AE10)=AE10,"",CONCATENATE("(√",AB11^2+AB10^2,")")) -> (√72)
B11: k | C11: sin | D11: a | E11: = | F11: =RANDBETWEEN(1,Worksheet!$B$5)*(-1)^RANDBETWEEN(1,2) -> 4 | G11: a | H11: = | I11: =CONCATENATE(IF(B9="deg",ROUND(IF(AND(F11>0,F10>0),I12,IF(AND(F11>0,F10<0),180-I12,IF(AND(F11<0,F10<0),180+I12,360-I12))),Worksheet!$B$11),ROUND(IF(AND(F11>0,F10>0),I12,IF(AND(F11>0,F10<0),PI()-I12,IF(AND(F11<0,F10<0),PI()+I12,2*PI()-I12))),Worksheet!$B$11)),IF(B9="deg","°","")) -> 2.678 | M11: k | N11: sin | O11: a | P11: = | Q11: =RANDBETWEEN(1,Worksheet!$B$5)*(-1)^RANDBETWEEN(1,2) -> -3 | R11: a | S11: = | T11: =CONCATENATE(IF(M9="deg",ROUND(IF(AND(Q11>0,Q10>0),T12,IF(AND(Q11>0,Q10<0),180-T12,IF(AND(Q11<0,Q10<0),180+T12,360-T12))),Worksheet!$B$11),ROUND(IF(AND(Q11>0,Q10>0),T12,IF(AND(Q11>0,Q10<0),PI()-T12,IF(AND(Q11<0,Q10<0),PI()+T12,2*PI()-T12))),Worksheet!$B$11)),IF(M9="deg","°","")) -> 5.878 | X11: k | Y11: sin | Z11: a | AA11: = | AB11: =RANDBETWEEN(1,Worksheet!$B$5)*(-1)^RANDBETWEEN(1,2) -> 6 | AC11: a | AD11: = | AE11: =CONCATENATE(IF(X9="deg",ROUND(IF(AND(AB11>0,AB10>0),AE12,IF(AND(AB11>0,AB10<0),180-AE12,IF(AND(AB11<0,AB10<0),180+AE12,360-AE12))),Worksheet!$B$11),ROUND(IF(AND(AB11>0,AB10>0),AE12,IF(AND(AB11>0,AB10<0),PI()-AE12,IF(AND(AB11<0,AB10<0),PI()+AE12,2*PI()-AE12))),Worksheet!$B$11)),IF(X9="deg","°","")) -> 0.785
I12: =ABS(IF(B9="rad",ATAN(ABS(F11/F10)),DEGREES(ATAN(ABS(F11/F10))))) -> 0.463647609 | T12: =ABS(IF(M9="rad",ATAN(ABS(Q11/Q10)),DEGREES(ATAN(ABS(Q11/Q10))))) -> 0.4048917863 | AE12: =ABS(IF(X9="rad",ATAN(ABS(AB11/AB10)),DEGREES(ATAN(ABS(AB11/AB10))))) -> 0.7853981634
